[Event "Titled Tuesday Blitz May 10 Early 2022"]
[White "Van den Dikkenberg, Erik"]
[Black "Richter, Nils"]
[WhiteFideId "1005880"]
[BlackFideId "12990809"]
[WhiteElo "2118"]
[BlackElo "2243"]
[Result "0-1"]
[Round "03"]
[TimeControl "180+1"]
[Date "2022.05.11"]
[WhiteClock "0:00:09"]
[BlackClock "0:00:39"]

1. e4 {[%clk 0:03:00]}  c5 {[%clk 0:02:50]} 2. Nc3 {[%clk 0:03:00]}  Nc6 {[%clk 0:02:48]} 3. f4 {[%clk 0:03:00]}  e6 {[%clk 0:02:44]} 4. Nf3 {[%clk 0:03:00]}  d5 {[%clk 0:02:40]} 5. Bb5 {[%clk 0:02:50]}  d4 {[%clk 0:02:37]} 6. Bxc6+ {[%clk 0:02:49]}  bxc6 {[%clk 0:02:36]} 7. Ne2 {[%clk 0:02:48]}  Nf6 {[%clk 0:02:22]} 8. d3 {[%clk 0:02:48]}  Be7 {[%clk 0:02:18]} 9. O-O {[%clk 0:02:48]}  a5 {[%clk 0:02:17]} 10. a4 {[%clk 0:02:44]}  c4 {[%clk 0:02:08]} 11. Kh1 {[%clk 0:02:32]}  cxd3 {[%clk 0:02:07]} 12. cxd3 {[%clk 0:02:32]}  c5 {[%clk 0:02:04]} 13. b3 {[%clk 0:02:06]}  O-O {[%clk 0:02:04]} 14. Ba3 {[%clk 0:01:48]}  Ba6 {[%clk 0:01:53]} 15. Qc2 {[%clk 0:01:44]}  Rb8 {[%clk 0:01:48]} 16. Rab1 {[%clk 0:01:44]}  c4 {[%clk 0:01:29]} 17. Bxe7 {[%clk 0:01:33]}  cxd3 {[%clk 0:01:29]} 18. Bxd8 {[%clk 0:01:08]}  dxc2 {[%clk 0:01:28]} 19. Rbe1 {[%clk 0:01:08]}  Rfxd8 {[%clk 0:01:25]} 20. Nfxd4 {[%clk 0:00:34]}  Rbc8 {[%clk 0:01:07]} 21. e5 {[%clk 0:00:17]}  Ng4 {[%clk 0:01:03]} 22. Nb5 {[%clk 0:00:16]}  Bxb5 {[%clk 0:00:55]} 23. axb5 {[%clk 0:00:16]}  Ne3 {[%clk 0:00:55]} 24. Rg1 {[%clk 0:00:13]}  Rd1 {[%clk 0:00:53]} 25. Nc1 {[%clk 0:00:12]}  Rcd8 {[%clk 0:00:41]} 26. g3 {[%clk 0:00:09]}  Rxe1 {[%clk 0:00:38]} 27. Rxe1 {[%clk 0:00:09]}  Rd1 {[%clk 0:00:39]} 0-1


[Site "https://www.chess.com"]

[Event "Titled Tuesday Blitz May 10 Early 2022"]
[White "Vlassov, Nikolai"]
[Black "Kashefi, Amir Hosein"]
[WhiteFideId "4103360"]
[BlackFideId "12557935"]
[WhiteElo "2407"]
[BlackElo "2005"]
[Result "0-1"]
[Round "03"]
[TimeControl "180+1"]
[Date "2022.05.11"]
[WhiteClock "0:00:03"]
[BlackClock "0:00:53"]

1. e4 {[%clk 0:03:00]}  c5 {[%clk 0:02:50]} 2. c3 {[%clk 0:03:00]}  g6 {[%clk 0:02:50]} 3. d4 {[%clk 0:03:00]}  cxd4 {[%clk 0:02:51]} 4. cxd4 {[%clk 0:03:01]}  d5 {[%clk 0:02:49]} 5. e5 {[%clk 0:03:01]}  Nc6 {[%clk 0:02:49]} 6. Nc3 {[%clk 0:03:01]}  Nh6 {[%clk 0:02:49]} 7. Bf4 {[%clk 0:03:01]}  Nf5 {[%clk 0:02:48]} 8. Nf3 {[%clk 0:03:00]}  h5 {[%clk 0:02:45]} 9. Qd2 {[%clk 0:02:47]}  e6 {[%clk 0:02:41]} 10. O-O-O {[%clk 0:02:40]}  Bd7 {[%clk 0:02:41]} 11. Kb1 {[%clk 0:02:40]}  Rc8 {[%clk 0:02:40]} 12. Bg5 {[%clk 0:02:24]}  Qa5 {[%clk 0:02:38]} 13. Bf6 {[%clk 0:02:24]}  Rg8 {[%clk 0:02:34]} 14. a3 {[%clk 0:01:58]}  Bh6 {[%clk 0:02:28]} 15. Qd3 {[%clk 0:01:44]}  a6 {[%clk 0:02:22]} 16. h3 {[%clk 0:01:44]}  Na7 {[%clk 0:02:13]} 17. g4 {[%clk 0:01:43]}  Ne7 {[%clk 0:02:12]} 18. Rg1 {[%clk 0:01:31]}  hxg4 {[%clk 0:02:09]} 19. hxg4 {[%clk 0:01:31]}  Nb5 {[%clk 0:02:10]} 20. Na2 {[%clk 0:01:12]}  Qa4 {[%clk 0:02:03]} 21. Be2 {[%clk 0:00:59]}  Nc6 {[%clk 0:01:49]} 22. Rh1 {[%clk 0:00:57]}  Bf8 {[%clk 0:01:49]} 23. Rc1 {[%clk 0:00:48]}  Nca7 {[%clk 0:01:21]} 24. Rxc8+ {[%clk 0:00:46]}  Nxc8 {[%clk 0:01:22]} 25. Rc1 {[%clk 0:00:37]}  Nb6 {[%clk 0:01:21]} 26. Bd1 {[%clk 0:00:29]}  Qa5 {[%clk 0:01:17]} 27. a4 {[%clk 0:00:24]}  Nxa4 {[%clk 0:01:11]} 28. Qd2 {[%clk 0:00:21]}  Qxd2 {[%clk 0:01:10]} 29. Nxd2 {[%clk 0:00:21]}  Nb6 {[%clk 0:01:05]} 30. Nb3 {[%clk 0:00:19]}  Bc6 {[%clk 0:01:04]} 31. Nc3 {[%clk 0:00:15]}  Nxc3+ {[%clk 0:01:03]} 32. bxc3 {[%clk 0:00:15]}  Nc4 {[%clk 0:01:01]} 33. Be2 {[%clk 0:00:14]}  Be7 {[%clk 0:00:54]} 34. g5 {[%clk 0:00:07]}  Bxf6 {[%clk 0:00:54]} 35. gxf6 {[%clk 0:00:07]}  Rh8 {[%clk 0:00:54]} 36. Bxc4 {[%clk 0:00:07]}  dxc4 {[%clk 0:00:55]} 37. Na5 {[%clk 0:00:07]}  Bd5 {[%clk 0:00:55]} 38. Rg1 {[%clk 0:00:03]}  Rh3 {[%clk 0:00:55]} 39. Kc2 {[%clk 0:00:03]}  Rf3 {[%clk 0:00:53]} 0-1


[Site "https://www.chess.com"]

[Event "Titled Tuesday Blitz May 10 Early 2022"]
[White "Wagner, Dennis"]
[Black "Lewicki, Miroslaw"]
[WhiteFideId "24650684"]
[BlackFideId "1113380"]
[WhiteElo "2355"]
[BlackElo "2283"]
[Result "0-1"]
[Round "03"]
[TimeControl "180+1"]
[Date "2022.05.11"]
[WhiteClock "0:00:02"]
[BlackClock "0:00:05"]

1. d4 {[%clk 0:03:00]}  Nf6 {[%clk 0:02:57]} 2. c4 {[%clk 0:03:00]}  e6 {[%clk 0:02:55]} 3. Nc3 {[%clk 0:03:01]}  d5 {[%clk 0:02:51]} 4. cxd5 {[%clk 0:03:00]}  exd5 {[%clk 0:02:50]} 5. Bg5 {[%clk 0:03:00]}  Nbd7 {[%clk 0:02:49]} 6. e3 {[%clk 0:02:59]}  Be7 {[%clk 0:02:49]} 7. Bd3 {[%clk 0:02:58]}  O-O {[%clk 0:02:49]} 8. Nf3 {[%clk 0:02:56]}  b6 {[%clk 0:02:49]} 9. O-O {[%clk 0:02:54]}  Bb7 {[%clk 0:02:50]} 10. Rc1 {[%clk 0:02:50]}  h6 {[%clk 0:02:50]} 11. Bf4 {[%clk 0:02:41]}  c5 {[%clk 0:02:47]} 12. h3 {[%clk 0:02:21]}  Ne4 {[%clk 0:02:38]} 13. Bb1 {[%clk 0:02:14]}  Ndf6 {[%clk 0:02:30]} 14. Ne5 {[%clk 0:02:13]}  cxd4 {[%clk 0:02:28]} 15. exd4 {[%clk 0:02:12]}  Nxc3 {[%clk 0:02:27]} 16. Rxc3 {[%clk 0:02:11]}  Ne4 {[%clk 0:02:27]} 17. Bxe4 {[%clk 0:01:59]}  dxe4 {[%clk 0:02:27]} 18. Bxh6 {[%clk 0:01:36]}  gxh6 {[%clk 0:02:20]} 19. Rg3+ {[%clk 0:01:36]}  Kh8 {[%clk 0:01:52]} 20. Qh5 {[%clk 0:01:18]}  Bg5 {[%clk 0:01:52]} 21. Nxf7+ {[%clk 0:00:51]}  Rxf7 {[%clk 0:01:52]} 22. Qxf7 {[%clk 0:00:52]}  Bd5 {[%clk 0:01:50]} 23. Qf5 {[%clk 0:00:47]}  Qd6 {[%clk 0:01:37]} 24. h4 {[%clk 0:00:43]}  Rf8 {[%clk 0:01:28]} 25. Qg4 {[%clk 0:00:40]}  Rf4 {[%clk 0:01:06]} 26. Qc8+ {[%clk 0:00:39]}  Rf8 {[%clk 0:01:06]} 27. Qh3 {[%clk 0:00:31]}  Bf4 {[%clk 0:00:59]} 28. Ra3 {[%clk 0:00:28]}  e3 {[%clk 0:00:44]} 29. Rxe3 {[%clk 0:00:18]}  Bxe3 {[%clk 0:00:42]} 30. Qxe3 {[%clk 0:00:19]}  Qf4 {[%clk 0:00:21]} 31. Re1 {[%clk 0:00:14]}  Qxh4 {[%clk 0:00:11]} 32. Qe5+ {[%clk 0:00:13]}  Rf6 {[%clk 0:00:12]} 33. f3 {[%clk 0:00:08]}  Kh7 {[%clk 0:00:07]} 34. Qe7+ {[%clk 0:00:05]}  Bf7 {[%clk 0:00:07]} 35. Re6 {[%clk 0:00:04]}  Qxd4+ {[%clk 0:00:06]} 36. Kh2 {[%clk 0:00:04]}  Qf4+ {[%clk 0:00:05]} 37. g3 {[%clk 0:00:04]}  Rxe6 {[%clk 0:00:05]} 38. Qf8 {[%clk 0:00:02]}  Re2+ {[%clk 0:00:05]} 39. Kh3 {[%clk 0:00:02]}  Qf5+ {[%clk 0:00:05]} 40. Kh4 {[%clk 0:00:02]}  Rh2# {[%clk 0:00:05]} 0-1


[Site "https://www.chess.com"]

[Event "Titled Tuesday Blitz May 10 Early 2022"]
[White "Winkels, Marcel"]
[Black "Fathy, Elameir"]
[WhiteFideId "1003887"]
[BlackFideId "10600396"]
[WhiteElo "1900"]
[BlackElo "2311"]
[Result "0-1"]
[Round "03"]
[TimeControl "180+1"]
[Date "2022.05.11"]
[WhiteClock "0:00:01"]
[BlackClock "0:00:02"]

1. d4 {[%clk 0:03:00]}  d5 {[%clk 0:02:51]} 2. Nc3 {[%clk 0:03:00]}  Nf6 {[%clk 0:02:50]} 3. Bf4 {[%clk 0:03:00]}  e6 {[%clk 0:02:49]} 4. e3 {[%clk 0:02:59]}  Bb4 {[%clk 0:02:40]} 5. Qd3 {[%clk 0:02:58]}  b6 {[%clk 0:02:37]} 6. a3 {[%clk 0:02:54]}  Ba6 {[%clk 0:02:22]} 7. Qd1 {[%clk 0:02:52]}  Bxc3+ {[%clk 0:02:19]} 8. bxc3 {[%clk 0:02:50]}  Bxf1 {[%clk 0:02:20]} 9. Kxf1 {[%clk 0:02:49]}  O-O {[%clk 0:02:21]} 10. Nf3 {[%clk 0:02:38]}  Nbd7 {[%clk 0:02:21]} 11. Ne5 {[%clk 0:02:35]}  Nxe5 {[%clk 0:02:16]} 12. Bxe5 {[%clk 0:02:34]}  Ne4 {[%clk 0:02:11]} 13. Qd3 {[%clk 0:02:32]}  f6 {[%clk 0:02:10]} 14. Bg3 {[%clk 0:02:30]}  c5 {[%clk 0:02:05]} 15. dxc5 {[%clk 0:02:18]}  bxc5 {[%clk 0:01:59]} 16. f3 {[%clk 0:02:16]}  c4 {[%clk 0:01:56]} 17. Qd4 {[%clk 0:02:15]}  e5 {[%clk 0:01:46]} 18. Qd1 {[%clk 0:02:04]}  Nxc3 {[%clk 0:01:45]} 19. Qe1 {[%clk 0:02:04]}  Nb5 {[%clk 0:01:45]} 20. a4 {[%clk 0:02:00]}  Nc7 {[%clk 0:01:44]} 21. h4 {[%clk 0:01:57]}  Qe8 {[%clk 0:01:44]} 22. h5 {[%clk 0:01:55]}  Rd8 {[%clk 0:01:44]} 23. Rb1 {[%clk 0:01:50]}  Qc6 {[%clk 0:01:42]} 24. Rh4 {[%clk 0:01:43]}  Rfe8 {[%clk 0:01:41]} 25. Rg4 {[%clk 0:01:28]}  h6 {[%clk 0:01:39]} 26. Rg6 {[%clk 0:01:27]}  d4 {[%clk 0:01:37]} 27. exd4 {[%clk 0:01:25]}  exd4 {[%clk 0:01:38]} 28. Qd2 {[%clk 0:01:24]}  Kh7 {[%clk 0:01:24]} 29. Bf4 {[%clk 0:01:23]}  c3 {[%clk 0:01:00]} 30. Qd3 {[%clk 0:01:20]}  Kh8 {[%clk 0:00:34]} 31. Bxh6 {[%clk 0:01:18]}  Ne6 {[%clk 0:00:34]} 32. Bc1 {[%clk 0:01:01]}  Nc5 {[%clk 0:00:17]} 33. Qf5 {[%clk 0:00:57]}  Qe6 {[%clk 0:00:17]} 34. Qxe6 {[%clk 0:00:50]}  Nxe6 {[%clk 0:00:16]} 35. Rb7 {[%clk 0:00:48]}  Rb8 {[%clk 0:00:11]} 36. Rxb8 {[%clk 0:00:39]}  Rxb8 {[%clk 0:00:12]} 37. Ke2 {[%clk 0:00:38]}  Rb1 {[%clk 0:00:11]} 38. Kd1 {[%clk 0:00:32]}  Nf4 {[%clk 0:00:11]} 39. Rg4 {[%clk 0:00:29]}  Nd5 {[%clk 0:00:11]} 40. Rxd4 {[%clk 0:00:17]}  Ne3+ {[%clk 0:00:11]} 41. Ke2 {[%clk 0:00:17]}  Nxc2 {[%clk 0:00:11]} 42. Rd7 {[%clk 0:00:13]}  Kh7 {[%clk 0:00:12]} 43. Bf4 {[%clk 0:00:12]}  Re1+ {[%clk 0:00:09]} 44. Kf2 {[%clk 0:00:11]}  Ra1 {[%clk 0:00:08]} 45. h6 {[%clk 0:00:10]}  Nb4 {[%clk 0:00:04]} 46. Rb7 {[%clk 0:00:09]}  Nd5 {[%clk 0:00:02]} 47. Rxg7+ {[%clk 0:00:07]}  Kh8 {[%clk 0:00:03]} 48. Be3 {[%clk 0:00:05]}  Ra2+ {[%clk 0:00:04]} 49. Kg3 {[%clk 0:00:04]}  Nxe3 {[%clk 0:00:04]} 50. Kf4 {[%clk 0:00:03]}  Nd5+ {[%clk 0:00:04]} 51. Kf5 {[%clk 0:00:03]}  c2 {[%clk 0:00:05]} 52. Kg6 {[%clk 0:00:03]}  Nf4+ {[%clk 0:00:05]} 53. Kf7 {[%clk 0:00:03]}  c1=Q {[%clk 0:00:03]} 54. Rg4 {[%clk 0:00:01]}  Qc7+ {[%clk 0:00:02]} 0-1


[Site "https://www.chess.com"]

[Event "Titled Tuesday Blitz May 10 Early 2022"]
[White "Zanette, Edgard Vinicius"]
[Black "Gurevich, Dmitry"]
[WhiteFideId "2109263"]
[BlackFideId "2000407"]
[WhiteElo "2182"]
[BlackElo "2506"]
[Result "0-1"]
[Round "03"]
[TimeControl "180+1"]
[Date "2022.05.11"]
[WhiteClock "0:00:17"]
[BlackClock "0:00:48"]

1. e4 {[%clk 0:02:59]}  c5 {[%clk 0:02:59]} 2. Nc3 {[%clk 0:02:59]}  g6 {[%clk 0:02:56]} 3. g3 {[%clk 0:02:59]}  Bg7 {[%clk 0:02:55]} 4. Bg2 {[%clk 0:02:58]}  Nc6 {[%clk 0:02:56]} 5. d3 {[%clk 0:02:56]}  Rb8 {[%clk 0:02:56]} 6. f4 {[%clk 0:02:56]}  d6 {[%clk 0:02:55]} 7. Nf3 {[%clk 0:02:55]}  e6 {[%clk 0:02:54]} 8. O-O {[%clk 0:02:52]}  Nge7 {[%clk 0:02:55]} 9. Be3 {[%clk 0:02:47]}  Nd4 {[%clk 0:02:51]} 10. e5 {[%clk 0:02:01]}  dxe5 {[%clk 0:02:38]} 11. fxe5 {[%clk 0:01:53]}  Nec6 {[%clk 0:02:32]} 12. Ne4 {[%clk 0:01:46]}  Nxe5 {[%clk 0:02:29]} 13. Nxe5 {[%clk 0:01:41]}  Bxe5 {[%clk 0:02:27]} 14. Bg5 {[%clk 0:01:30]}  Qc7 {[%clk 0:02:26]} 15. Nf6+ {[%clk 0:01:26]}  Bxf6 {[%clk 0:02:15]} 16. Bxf6 {[%clk 0:01:23]}  Rg8 {[%clk 0:02:16]} 17. c3 {[%clk 0:01:16]}  Nf5 {[%clk 0:02:13]} 18. Qe2 {[%clk 0:01:11]}  Bd7 {[%clk 0:02:02]} 19. Be5 {[%clk 0:00:57]}  Qd8 {[%clk 0:02:01]} 20. Bxb8 {[%clk 0:00:52]}  Qxb8 {[%clk 0:02:01]} 21. Rae1 {[%clk 0:00:46]}  Qc7 {[%clk 0:01:59]} 22. Qe5 {[%clk 0:00:46]}  Qxe5 {[%clk 0:01:58]} 23. Rxe5 {[%clk 0:00:45]}  b6 {[%clk 0:01:58]} 24. g4 {[%clk 0:00:39]}  Nd6 {[%clk 0:01:53]} 25. Rd1 {[%clk 0:00:34]}  Ke7 {[%clk 0:01:52]} 26. d4 {[%clk 0:00:34]}  Nc4 {[%clk 0:01:46]} 27. Re2 {[%clk 0:00:32]}  Rc8 {[%clk 0:01:42]} 28. b3 {[%clk 0:00:31]}  Na3 {[%clk 0:01:34]} 29. d5 {[%clk 0:00:31]}  Nb5 {[%clk 0:01:31]} 30. Re3 {[%clk 0:00:29]}  Kf8 {[%clk 0:01:22]} 31. h3 {[%clk 0:00:26]}  h6 {[%clk 0:01:18]} 32. Rf1 {[%clk 0:00:26]}  Kg7 {[%clk 0:01:15]} 33. a4 {[%clk 0:00:24]}  Nc7 {[%clk 0:01:13]} 34. d6 {[%clk 0:00:24]}  Ne8 {[%clk 0:01:12]} 35. Rd1 {[%clk 0:00:23]}  g5 {[%clk 0:01:11]} 36. Red3 {[%clk 0:00:23]}  Nf6 {[%clk 0:01:03]} 37. c4 {[%clk 0:00:23]}  h5 {[%clk 0:00:58]} 38. gxh5 {[%clk 0:00:22]}  Nxh5 {[%clk 0:00:56]} 39. Bb7 {[%clk 0:00:22]}  Rd8 {[%clk 0:00:55]} 40. Kh2 {[%clk 0:00:20]}  Nf4 {[%clk 0:00:55]} 41. Rf3 {[%clk 0:00:20]}  Ng6 {[%clk 0:00:54]} 42. Rg1 {[%clk 0:00:20]}  f6 {[%clk 0:00:53]} 43. Ba6 {[%clk 0:00:18]}  Bc6 {[%clk 0:00:50]} 44. Rd3 {[%clk 0:00:18]}  Ne5 {[%clk 0:00:48]} 45. Rd2 {[%clk 0:00:18]}  Nf3+ {[%clk 0:00:48]} 46. Kg3 {[%clk 0:00:17]}  Nxd2 {[%clk 0:00:48]} 0-1


[Site "https://www.chess.com"]

[Event "Titled Tuesday Blitz May 10 Early 2022"]
[White "Zemlyanskii, Ivan"]
[Black "Danaci, Ege"]
[WhiteFideId "24249971"]
[BlackFideId "34506748"]
[WhiteElo "1815"]
[BlackElo "1799"]
[Result "1-0"]
[Round "03"]
[TimeControl "180+1"]
[Date "2022.05.11"]
[WhiteClock "0:01:44"]
[BlackClock "0:01:53"]

1. d4 {[%clk 0:03:00]}  Nf6 {[%clk 0:03:00]} 2. c4 {[%clk 0:02:56]}  g6 {[%clk 0:03:00]} 3. Nc3 {[%clk 0:02:52]}  Bg7 {[%clk 0:03:00]} 4. e4 {[%clk 0:02:49]}  O-O {[%clk 0:03:00]} 5. Nf3 {[%clk 0:02:46]}  d6 {[%clk 0:03:00]} 6. Be2 {[%clk 0:02:47]}  e5 {[%clk 0:03:00]} 7. O-O {[%clk 0:02:46]}  exd4 {[%clk 0:03:00]} 8. Nxd4 {[%clk 0:02:43]}  Re8 {[%clk 0:03:01]} 9. f3 {[%clk 0:02:35]}  Nc6 {[%clk 0:03:01]} 10. Be3 {[%clk 0:02:33]}  Nh5 {[%clk 0:02:58]} 11. f4 {[%clk 0:02:33]}  Nf6 {[%clk 0:02:58]} 12. Bf3 {[%clk 0:02:32]}  Bg4 {[%clk 0:02:38]} 13. Bxg4 {[%clk 0:02:26]}  Nxg4 {[%clk 0:02:36]} 14. Qxg4 {[%clk 0:02:26]}  Nxd4 {[%clk 0:02:35]} 15. Bf2 {[%clk 0:02:21]}  h5 {[%clk 0:02:13]} 16. Qd1 {[%clk 0:02:18]}  Nc6 {[%clk 0:01:56]} 17. f5 {[%clk 0:01:53]}  Bxc3 {[%clk 0:01:52]} 18. bxc3 {[%clk 0:01:50]}  Rxe4 {[%clk 0:01:52]} 19. fxg6 {[%clk 0:01:48]}  fxg6 {[%clk 0:01:53]} 20. Qd5+ {[%clk 0:01:44]} 1-0


[Site "https://www.chess.com"]

[Event "Titled Tuesday Blitz May 10 Early 2022"]
[White "Zhao, Jun"]
[Black "Fier, Alexandr"]
[WhiteFideId "8602522"]
[BlackFideId "2107139"]
[WhiteElo "2547"]
[BlackElo "2571"]
[Result "0-1"]
[Round "03"]
[TimeControl "180+1"]
[Date "2022.05.10"]
[WhiteClock "0:00:01"]
[BlackClock "0:00:48"]

1. e4 {[%clk 0:03:00]}  c5 {[%clk 0:02:57]} 2. Nf3 {[%clk 0:03:00]}  d6 {[%clk 0:02:57]} 3. Bb5+ {[%clk 0:02:59]}  Bd7 {[%clk 0:02:57]} 4. c4 {[%clk 0:02:59]}  Bxb5 {[%clk 0:02:56]} 5. cxb5 {[%clk 0:02:59]}  Nd7 {[%clk 0:02:55]} 6. Nc3 {[%clk 0:02:58]}  Ngf6 {[%clk 0:02:56]} 7. O-O {[%clk 0:02:56]}  g6 {[%clk 0:02:56]} 8. d4 {[%clk 0:02:57]}  cxd4 {[%clk 0:02:56]} 9. Nxd4 {[%clk 0:02:57]}  Bg7 {[%clk 0:02:57]} 10. Be3 {[%clk 0:02:58]}  O-O {[%clk 0:02:57]} 11. Qe2 {[%clk 0:02:57]}  Rc8 {[%clk 0:02:53]} 12. Rfd1 {[%clk 0:02:55]}  Nc5 {[%clk 0:02:52]} 13. f3 {[%clk 0:02:55]}  Nfd7 {[%clk 0:02:50]} 14. Bf2 {[%clk 0:02:50]}  Ne6 {[%clk 0:02:49]} 15. Nxe6 {[%clk 0:02:35]}  fxe6 {[%clk 0:02:49]} 16. Qc2 {[%clk 0:02:22]}  Qa5 {[%clk 0:02:47]} 17. Qb3 {[%clk 0:02:23]}  Kf7 {[%clk 0:02:42]} 18. Ne2 {[%clk 0:02:17]}  Nc5 {[%clk 0:02:36]} 19. Bxc5 {[%clk 0:02:09]}  Rxc5 {[%clk 0:02:37]} 20. Nf4 {[%clk 0:02:09]}  Re5 {[%clk 0:02:33]} 21. a4 {[%clk 0:02:09]}  Rc8 {[%clk 0:02:17]} 22. Nd3 {[%clk 0:01:59]}  Rg5 {[%clk 0:02:14]} 23. f4 {[%clk 0:01:58]}  Rh5 {[%clk 0:02:14]} 24. Kh1 {[%clk 0:01:55]}  Qb6 {[%clk 0:02:03]} 25. Rf1 {[%clk 0:01:36]}  d5 {[%clk 0:01:35]} 26. f5 {[%clk 0:01:36]}  gxf5 {[%clk 0:01:30]} 27. exf5 {[%clk 0:01:18]}  Rxf5 {[%clk 0:01:18]} 28. Rxf5+ {[%clk 0:01:17]}  exf5 {[%clk 0:01:18]} 29. Qxd5+ {[%clk 0:01:16]}  Qe6 {[%clk 0:01:19]} 30. Qxb7 {[%clk 0:01:15]}  Rd8 {[%clk 0:01:13]} 31. Qf3 {[%clk 0:01:06]}  Qe4 {[%clk 0:01:12]} 32. Nc5 {[%clk 0:00:26]}  Qxf3 {[%clk 0:01:05]} 33. gxf3 {[%clk 0:00:27]}  Bxb2 {[%clk 0:01:06]} 34. Rb1 {[%clk 0:00:27]}  Rd2 {[%clk 0:01:02]} 35. a5 {[%clk 0:00:16]}  Be5 {[%clk 0:01:02]} 36. b6 {[%clk 0:00:14]}  axb6 {[%clk 0:01:02]} 37. axb6 {[%clk 0:00:12]}  Rxh2+ {[%clk 0:01:01]} 38. Kg1 {[%clk 0:00:12]}  Rc2 {[%clk 0:01:01]} 39. Nd3 {[%clk 0:00:04]}  Bb8 {[%clk 0:00:59]} 40. b7 {[%clk 0:00:04]}  Rc3 {[%clk 0:00:59]} 41. Nb4 {[%clk 0:00:02]}  Rxf3 {[%clk 0:00:57]} 42. Nc6 {[%clk 0:00:02]}  Bd6 {[%clk 0:00:55]} 43. Rd1 {[%clk 0:00:01]}  Rb3 {[%clk 0:00:48]} 0-1


[Site "https://www.chess.com"]

[Event "Titled Tuesday Blitz May 10 Early 2022"]
[White "Zherebtsova, Alexandra"]
[Black "Karolczuk, Iwo"]
[WhiteFideId "24129518"]
[BlackFideId "21816972"]
[WhiteElo "2025"]
[BlackElo "2258"]
[Result "1-0"]
[Round "03"]
[TimeControl "180+1"]
[Date "2022.05.11"]
[WhiteClock "0:01:14"]
[BlackClock "0:00:31"]

1. d4 {[%clk 0:03:00]}  Nf6 {[%clk 0:02:58]} 2. Nf3 {[%clk 0:02:59]}  g6 {[%clk 0:02:57]} 3. c4 {[%clk 0:02:59]}  Bg7 {[%clk 0:02:56]} 4. Nc3 {[%clk 0:02:58]}  O-O {[%clk 0:02:56]} 5. e4 {[%clk 0:02:57]}  d6 {[%clk 0:02:54]} 6. h3 {[%clk 0:02:54]}  c5 {[%clk 0:02:53]} 7. d5 {[%clk 0:02:54]}  e6 {[%clk 0:02:52]} 8. Bd3 {[%clk 0:02:54]}  exd5 {[%clk 0:02:49]} 9. exd5 {[%clk 0:02:54]}  Re8+ {[%clk 0:02:48]} 10. Be3 {[%clk 0:02:53]}  Nbd7 {[%clk 0:02:23]} 11. O-O {[%clk 0:02:49]}  a6 {[%clk 0:02:19]} 12. a4 {[%clk 0:02:47]}  Nh5 {[%clk 0:02:10]} 13. g4 {[%clk 0:02:31]}  Nhf6 {[%clk 0:01:47]} 14. Qd2 {[%clk 0:02:21]}  h5 {[%clk 0:01:45]} 15. Bg5 {[%clk 0:02:06]}  Qc7 {[%clk 0:01:31]} 16. Rae1 {[%clk 0:01:30]}  Rxe1 {[%clk 0:01:07]} 17. Rxe1 {[%clk 0:01:30]}  hxg4 {[%clk 0:01:07]} 18. hxg4 {[%clk 0:01:30]}  Nf8 {[%clk 0:01:06]} 19. Qf4 {[%clk 0:01:17]}  N6h7 {[%clk 0:00:31]} 20. Re7 {[%clk 0:01:14]} 1-0


[Site "https://www.chess.com"]

[Event "Titled Tuesday Blitz May 10 Early 2022"]
[White "Agasarov, Benik"]
[Black "Nilsen, Tobias Lang"]
[WhiteFideId "13314823"]
[BlackFideId "1521624"]
[WhiteElo "2568"]
[BlackElo "2014"]
[Result "1-0"]
[Round "04"]
[TimeControl "180+1"]
[Date "2022.05.11"]
[WhiteClock "0:01:52"]
[BlackClock "0:01:02"]

1. d4 {[%clk 0:03:00]}  Nf6 {[%clk 0:02:54]} 2. c4 {[%clk 0:03:00]}  e6 {[%clk 0:02:54]} 3. Nf3 {[%clk 0:03:00]}  Bb4+ {[%clk 0:02:53]} 4. Bd2 {[%clk 0:02:57]}  Qe7 {[%clk 0:02:53]} 5. g3 {[%clk 0:02:56]}  O-O {[%clk 0:02:52]} 6. Bg2 {[%clk 0:02:56]}  Bxd2+ {[%clk 0:02:53]} 7. Nbxd2 {[%clk 0:02:53]}  d6 {[%clk 0:02:53]} 8. O-O {[%clk 0:02:53]}  e5 {[%clk 0:02:54]} 9. e4 {[%clk 0:02:51]}  h6 {[%clk 0:02:40]} 10. d5 {[%clk 0:02:49]}  a5 {[%clk 0:02:38]} 11. b3 {[%clk 0:02:48]}  Na6 {[%clk 0:02:38]} 12. a3 {[%clk 0:02:47]}  Nc5 {[%clk 0:02:38]} 13. Qc2 {[%clk 0:02:47]}  Bd7 {[%clk 0:02:36]} 14. b4 {[%clk 0:02:47]}  axb4 {[%clk 0:02:33]} 15. axb4 {[%clk 0:02:47]}  Na6 {[%clk 0:02:33]} 16. Qb2 {[%clk 0:02:45]}  Nh7 {[%clk 0:02:30]} 17. c5 {[%clk 0:02:40]}  f5 {[%clk 0:02:23]} 18. exf5 {[%clk 0:02:38]}  Bxf5 {[%clk 0:02:24]} 19. Nh4 {[%clk 0:02:38]}  Bd7 {[%clk 0:02:16]} 20. Ng6 {[%clk 0:02:36]}  Qg5 {[%clk 0:02:07]} 21. Nxf8 {[%clk 0:02:34]}  Rxf8 {[%clk 0:02:07]} 22. c6 {[%clk 0:02:33]}  Bc8 {[%clk 0:02:04]} 23. Ne4 {[%clk 0:02:32]}  Qh5 {[%clk 0:02:03]} 24. b5 {[%clk 0:02:30]}  Nb8 {[%clk 0:02:00]} 25. b6 {[%clk 0:02:28]}  cxb6 {[%clk 0:01:56]} 26. Qxb6 {[%clk 0:02:23]}  Bh3 {[%clk 0:01:54]} 27. Bxh3 {[%clk 0:02:19]}  Qxh3 {[%clk 0:01:54]} 28. c7 {[%clk 0:02:18]}  Nd7 {[%clk 0:01:52]} 29. Qxd6 {[%clk 0:02:17]}  Rc8 {[%clk 0:01:22]} 30. Rfc1 {[%clk 0:01:59]}  Nhf6 {[%clk 0:01:12]} 31. Qe6+ {[%clk 0:01:55]}  Qxe6 {[%clk 0:01:07]} 32. dxe6 {[%clk 0:01:55]}  Nb6 {[%clk 0:01:04]} 33. Nd6 {[%clk 0:01:54]}  Nfd5 {[%clk 0:01:01]} 34. Nxc8 {[%clk 0:01:54]}  Nxc8 {[%clk 0:01:02]} 35. Ra8 {[%clk 0:01:53]}  Ne7 {[%clk 0:01:02]} 36. Rd1 {[%clk 0:01:52]} 1-0


[Site "https://www.chess.com"]

[Event "Titled Tuesday Blitz May 10 Early 2022"]
[White "Avazkhonov, Alikhon"]
[Black "Ardila, Oscar Humberto"]
[WhiteFideId "14208504"]
[BlackFideId "4404742"]
[WhiteElo "1739"]
[BlackElo "1928"]
[Result "1-0"]
[Round "04"]
[TimeControl "180+1"]
[Date "2022.05.11"]
[WhiteClock "0:01:32"]
[BlackClock "0:01:35"]

1. f4 {[%clk 0:03:00]}  Nf6 {[%clk 0:02:59]} 2. Nf3 {[%clk 0:03:01]}  g6 {[%clk 0:02:58]} 3. g3 {[%clk 0:03:01]}  Bg7 {[%clk 0:02:58]} 4. Bg2 {[%clk 0:03:02]}  O-O {[%clk 0:02:59]} 5. O-O {[%clk 0:03:02]}  d6 {[%clk 0:02:59]} 6. d3 {[%clk 0:03:03]}  Nbd7 {[%clk 0:03:00]} 7. e4 {[%clk 0:03:03]}  c5 {[%clk 0:03:00]} 8. Nc3 {[%clk 0:03:04]}  a6 {[%clk 0:02:59]} 9. h3 {[%clk 0:03:04]}  Qc7 {[%clk 0:02:59]} 10. g4 {[%clk 0:03:04]}  Rb8 {[%clk 0:02:57]} 11. Qe1 {[%clk 0:02:58]}  b5 {[%clk 0:02:57]} 12. g5 {[%clk 0:02:51]}  Nh5 {[%clk 0:02:53]} 13. Nd5 {[%clk 0:02:52]}  Qd8 {[%clk 0:02:53]} 14. f5 {[%clk 0:02:52]}  Bb7 {[%clk 0:02:47]} 15. Nh2 {[%clk 0:02:18]}  Bxd5 {[%clk 0:02:45]} 16. exd5 {[%clk 0:02:19]}  Bd4+ {[%clk 0:02:40]} 17. Kh1 {[%clk 0:02:08]}  Be5 {[%clk 0:02:38]} 18. Rf3 {[%clk 0:01:47]}  Nb6 {[%clk 0:02:32]} 19. Ng4 {[%clk 0:01:46]}  Bd4 {[%clk 0:02:27]} 20. c3 {[%clk 0:01:42]}  Bg7 {[%clk 0:02:26]} 21. f6 {[%clk 0:01:42]}  exf6 {[%clk 0:02:26]} 22. gxf6 {[%clk 0:01:40]}  Bxf6 {[%clk 0:02:14]} 23. Nxf6+ {[%clk 0:01:34]}  Nxf6 {[%clk 0:02:14]} 24. Bg5 {[%clk 0:01:35]}  Nbd7 {[%clk 0:02:07]} 25. Qh4 {[%clk 0:01:35]}  Kg7 {[%clk 0:01:50]} 26. Raf1 {[%clk 0:01:34]}  h6 {[%clk 0:01:34]} 27. Qxh6+ {[%clk 0:01:32]}  Kg8 {[%clk 0:01:35]} 28. Rxf6 {[%clk 0:01:32]}  Nxf6 {[%clk 0:01:35]} 29. Bxf6 {[%clk 0:01:32]} 1-0


[Site "https://www.chess.com"]